[Event "Late-Titled-Tuesday-Blitz-February-27-2024"]
[Site "Chess.com"]
[Date "2024.02.27"]
[Round "1"]
[White "Russian_berezka"]
[Black "mjelcic"]
[Result "1-0"]
[WhiteElo "2597"]
[BlackElo "2247"]
[TimeControl "180+1"]
[EndTime "14:07:48 PST"]
[Termination "Russian_berezka won by resignation"]

1. d4 {[%clk 0:03:00.3]} 1... d5 {[%clk 0:02:59.7]} 2. Bf4 {[%clk 0:02:59.9]}
2... Nf6 {[%clk 0:02:59.4]} 3. e3 {[%clk 0:03:00.4]} 3... c5 {[%clk 0:02:59.2]}
4. c3 {[%clk 0:03:00.8]} 4... Nc6 {[%clk 0:02:58.2]} 5. Nd2 {[%clk 0:03:01.3]}
5... Bf5 {[%clk 0:02:57.3]} 6. Qb3 {[%clk 0:03:00.9]} 6... Qb6 {[%clk
0:02:56.8]} 7. dxc5 {[%clk 0:03:00.1]} 7... Qxb3 {[%clk 0:02:50.2]} 8. axb3
{[%clk 0:03:01]} 8... e5 {[%clk 0:02:50.4]} 9. Bg3 {[%clk 0:03:01.3]} 9... Bxc5
{[%clk 0:02:49.6]} 10. Ngf3 {[%clk 0:03:01.7]} 10... Bd6 {[%clk 0:02:47.6]} 11.
Bb5 {[%clk 0:02:59.7]} 11... Nd7 {[%clk 0:02:44.1]} 12. Nd4 {[%clk 0:02:59.9]}
12... Nxd4 {[%clk 0:02:37.5]} 13. exd4 {[%clk 0:02:59.2]} 13... f6 {[%clk
0:02:33.6]} 14. dxe5 {[%clk 0:02:47.4]} 14... fxe5 {[%clk 0:02:29.8]} 15. Nf3
{[%clk 0:02:43.1]} 15... O-O {[%clk 0:02:25.9]} 16. O-O-O {[%clk 0:02:33.2]}
16... Nb6 {[%clk 0:01:58.9]} 17. Bxe5 {[%clk 0:02:24.4]} 17... Bxe5 {[%clk
0:01:49.2]} 18. Nxe5 {[%clk 0:02:25.3]} 18... a6 {[%clk 0:01:49.7]} 19. Bd3
{[%clk 0:02:24.8]} 19... Rae8 {[%clk 0:01:46.3]} 20. Rhe1 {[%clk 0:02:22.4]}
20... Re7 {[%clk 0:01:33.2]} 21. Kd2 {[%clk 0:02:07]} 21... Be4 {[%clk 0:01:22]}
22. Bxe4 {[%clk 0:01:37.3]} 22... dxe4 {[%clk 0:01:15]} 23. Rxe4 {[%clk
0:01:32.5]} 23... Rxf2+ {[%clk 0:01:14]} 24. Ke1 {[%clk 0:01:25.8]} 24... Rf8
{[%clk 0:00:56.8]} 25. Rd6 {[%clk 0:00:58.6]} 25... Nc8 {[%clk 0:00:37.7]} 26.
Rd7 {[%clk 0:00:52.9]} 26... Rfe8 {[%clk 0:00:38.6]} 27. Rxe7 {[%clk 0:00:52.2]}
27... Rxe7 {[%clk 0:00:38.8]} 28. Re2 {[%clk 0:00:51.3]} 28... Nd6 {[%clk
0:00:35.2]} 29. Nc4 {[%clk 0:00:48.1]} 29... Nf5 {[%clk 0:00:21.5]} 30. Rxe7
{[%clk 0:00:46.1]} 30... Nxe7 {[%clk 0:00:22.3]} 31. Ke2 {[%clk 0:00:46.7]}
31... Kf7 {[%clk 0:00:22]} 32. Nd6+ {[%clk 0:00:46.6]} 32... Ke6 {[%clk
0:00:21.5]} 33. Nxb7 {[%clk 0:00:47.5]} 33... Kd5 {[%clk 0:00:21.2]} 34. Na5
{[%clk 0:00:32.3]} 34... g5 {[%clk 0:00:19]} 35. Nc4 {[%clk 0:00:32]} 35... h5
{[%clk 0:00:16.9]} 36. Kd3 {[%clk 0:00:32.1]} 36... Nc6 {[%clk 0:00:13.9]} 37.
Ne3+ {[%clk 0:00:31.8]} 37... Ke5 {[%clk 0:00:13.3]} 38. b4 {[%clk 0:00:32]}
38... g4 {[%clk 0:00:11.5]} 39. g3 {[%clk 0:00:28.9]} 39... Nd8 {[%clk
0:00:08.4]} 40. c4 {[%clk 0:00:27.2]} 40... Ne6 {[%clk 0:00:08.5]} 41. Nd5
{[%clk 0:00:17.8]} 41... Ng5 {[%clk 0:00:07.6]} 42. Nc7 {[%clk 0:00:16.6]} 42...
Nf3 {[%clk 0:00:05.6]} 43. Nxa6 {[%clk 0:00:17.2]} 43... Nxh2 {[%clk 0:00:05.5]}
44. b5 {[%clk 0:00:17.8]} 44... Kd6 {[%clk 0:00:05.1]} 45. c5+ {[%clk
0:00:17.2]} 45... Kd7 {[%clk 0:00:05.1]} 46. c6+ {[%clk 0:00:17]} 46... Kc8
{[%clk 0:00:05]} 47. b6 {[%clk 0:00:16.7]} 1-0

[Event "Late-Titled-Tuesday-Blitz-February-27-2024"]
[Site "Chess.com"]
[Date "2024.02.27"]
[Round "1"]
[White "reevecanada"]
[Black "pr1105"]
[Result "1-0"]
[WhiteElo "2636"]
[BlackElo "2337"]
[TimeControl "180+1"]
[EndTime "14:07:50 PST"]
[Termination "reevecanada won by resignation"]

1. e4 {[%clk 0:02:58.6]} 1... e5 {[%clk 0:03:00.1]} 2. Nf3 {[%clk 0:02:56.3]}
2... Nc6 {[%clk 0:02:58.3]} 3. d4 {[%clk 0:02:55.4]} 3... exd4 {[%clk
0:02:59.2]} 4. Nxd4 {[%clk 0:02:54.5]} 4... Nf6 {[%clk 0:02:59.3]} 5. Nxc6
{[%clk 0:02:53]} 5... bxc6 {[%clk 0:03:00.2]} 6. Nd2 {[%clk 0:02:51.4]} 6... Bc5
{[%clk 0:02:46.8]} 7. Be2 {[%clk 0:02:45.8]} 7... O-O {[%clk 0:02:43]} 8. e5
{[%clk 0:02:44.6]} 8... Nd5 {[%clk 0:02:36]} 9. Nb3 {[%clk 0:02:43]} 9... Bb6
{[%clk 0:02:33.5]} 10. c4 {[%clk 0:02:41]} 10... Ne7 {[%clk 0:02:27.4]} 11. c5
{[%clk 0:02:37.8]} 11... Nd5 {[%clk 0:02:22.3]} 12. cxb6 {[%clk 0:02:35.4]}
12... axb6 {[%clk 0:02:23.2]} 13. O-O {[%clk 0:02:34.5]} 13... Re8 {[%clk
0:02:22.9]} 14. f4 {[%clk 0:02:33.5]} 14... Bb7 {[%clk 0:02:17.2]} 15. Bf3
{[%clk 0:02:31.8]} 15... d6 {[%clk 0:02:16.5]} 16. Re1 {[%clk 0:02:28.8]} 16...
dxe5 {[%clk 0:02:10.2]} 17. fxe5 {[%clk 0:02:23.8]} 17... Qh4 {[%clk 0:02:07.6]}
18. g3 {[%clk 0:02:18.4]} 18... Qe7 {[%clk 0:02:04.5]} 19. Qd4 {[%clk
0:02:07.4]} 19... Nb4 {[%clk 0:01:58.9]} 20. Qc3 {[%clk 0:01:55.4]} 20... Rxa2
{[%clk 0:01:40.6]} 21. Rxa2 {[%clk 0:01:54.3]} 21... Nxa2 {[%clk 0:01:41.5]} 22.
Qc4 {[%clk 0:01:53.5]} 22... Nxc1 {[%clk 0:01:37.8]} 23. Nxc1 {[%clk 0:01:51.8]}
23... Rd8 {[%clk 0:01:28.9]} 24. Bxc6 {[%clk 0:01:46.1]} 24... Bxc6 {[%clk
0:01:22]} 25. Qxc6 {[%clk 0:01:43.2]} 25... g6 {[%clk 0:01:16.5]} 26. e6 {[%clk
0:01:42.1]} 26... Rd6 {[%clk 0:01:15.1]} 27. exf7+ {[%clk 0:01:38.7]} 27... Qxf7
{[%clk 0:01:16]} 28. Qe8+ {[%clk 0:01:37.8]} 28... Qxe8 {[%clk 0:01:13.8]} 29.
Rxe8+ {[%clk 0:01:38.1]} 29... Kf7 {[%clk 0:01:14.7]} 30. Re1 {[%clk 0:01:38.4]}
30... Rd2 {[%clk 0:01:13.9]} 31. b3 {[%clk 0:01:36.5]} 31... c5 {[%clk
0:01:11.3]} 32. Ne2 {[%clk 0:01:35.5]} 32... Rb2 {[%clk 0:01:08.8]} 33. Rf1+
{[%clk 0:01:33.2]} 33... Ke7 {[%clk 0:01:03.2]} 34. Nc1 {[%clk 0:01:33.1]} 34...
b5 {[%clk 0:00:59.3]} 35. Rf2 {[%clk 0:01:32.2]} 35... Rb1 {[%clk 0:00:59.5]}
36. Rc2 {[%clk 0:01:31.7]} 36... Kd6 {[%clk 0:00:59.8]} 37. Kf2 {[%clk
0:01:30.6]} 37... Kd5 {[%clk 0:00:55.2]} 38. Ke3 {[%clk 0:01:24]} 38... h5
{[%clk 0:00:53.2]} 39. Nd3 {[%clk 0:01:19.5]} 39... c4 {[%clk 0:00:44.2]} 40.
bxc4+ {[%clk 0:01:15.5]} 40... bxc4 {[%clk 0:00:45.1]} 41. Nf4+ {[%clk
0:01:15.4]} 41... Kc5 {[%clk 0:00:45.4]} 42. Nxg6 {[%clk 0:01:14.9]} 42... Kb4
{[%clk 0:00:44.3]} 43. Ne5 {[%clk 0:01:13.9]} 43... c3 {[%clk 0:00:44.2]} 44.
Kd3 {[%clk 0:00:59.2]} 44... Rd1+ {[%clk 0:00:41.8]} 45. Ke2 {[%clk 0:00:58.8]}
45... Rh1 {[%clk 0:00:30.5]} 46. Nf3 {[%clk 0:00:23]} 46... Kb3 {[%clk 0:00:25]}
47. Kd3 {[%clk 0:00:20.6]} 47... Rd1+ {[%clk 0:00:21.8]} 48. Nd2+ {[%clk
0:00:21.2]} 48... cxd2 {[%clk 0:00:15.9]} 49. Rxd2 {[%clk 0:00:22.1]} 49... Rh1
{[%clk 0:00:15.3]} 50. Ke4 {[%clk 0:00:21.1]} 50... Kc3 {[%clk 0:00:15.5]} 51.
Rf2 {[%clk 0:00:20.6]} 51... Kc4 {[%clk 0:00:14.2]} 52. Kf4 {[%clk 0:00:20.9]}
52... Kd4 {[%clk 0:00:14.6]} 53. Kg5 {[%clk 0:00:21.6]} 53... Ke3 {[%clk
0:00:14.8]} 54. Ra2 {[%clk 0:00:21.7]} 54... Kf3 {[%clk 0:00:12.3]} 55. Kxh5
{[%clk 0:00:21.9]} 55... Ke4 {[%clk 0:00:09.8]} 56. g4 {[%clk 0:00:22.1]} 56...
Kf4 {[%clk 0:00:09.7]} 57. g5 {[%clk 0:00:22.2]} 57... Rg1 {[%clk 0:00:08.9]}
58. g6 {[%clk 0:00:21.5]} 58... Kf5 {[%clk 0:00:09.1]} 59. Rf2+ {[%clk
0:00:20.5]} 59... Ke6 {[%clk 0:00:09.3]} 60. Kh6 {[%clk 0:00:21.1]} 60... Ke7
{[%clk 0:00:09.2]} 61. g7 {[%clk 0:00:21.1]} 61... Ke6 {[%clk 0:00:10.1]} 1-0

[Event "Late-Titled-Tuesday-Blitz-February-27-2024"]
[Site "Chess.com"]
[Date "2024.02.27"]
[Round "1"]
[White "kai_nov"]
[Black "IamSchrodingersCat"]
[Result "0-1"]
[WhiteElo "2327"]
[BlackElo "2631"]
[TimeControl "180+1"]
[EndTime "14:07:53 PST"]
[Termination "IamSchrodingersCat won on time"]

1. d4 {[%clk 0:02:59]} 1... Nf6 {[%clk 0:02:59.8]} 2. c4 {[%clk 0:02:58.8]} 2...
g6 {[%clk 0:02:59.4]} 3. f3 {[%clk 0:02:58.9]} 3... Bg7 {[%clk 0:02:57.4]} 4. e4
{[%clk 0:02:59.1]} 4... d6 {[%clk 0:02:58]} 5. Nc3 {[%clk 0:02:59.6]} 5... c5
{[%clk 0:02:57.8]} 6. d5 {[%clk 0:02:58.8]} 6... O-O {[%clk 0:02:57]} 7. Bg5
{[%clk 0:02:59.3]} 7... h6 {[%clk 0:02:54.8]} 8. Be3 {[%clk 0:02:58.9]} 8... e6
{[%clk 0:02:54]} 9. Qd2 {[%clk 0:02:58.9]} 9... exd5 {[%clk 0:02:53.2]} 10. cxd5
{[%clk 0:02:59.8]} 10... Kh7 {[%clk 0:02:32.1]} 11. a4 {[%clk 0:02:59.4]} 11...
Nbd7 {[%clk 0:02:28.3]} 12. Nh3 {[%clk 0:02:58.9]} 12... a6 {[%clk 0:02:22.1]}
13. Nf2 {[%clk 0:02:58.8]} 13... Rb8 {[%clk 0:02:20.5]} 14. Be2 {[%clk
0:02:58.7]} 14... Ne5 {[%clk 0:02:16]} 15. O-O {[%clk 0:02:58.5]} 15... Bd7
{[%clk 0:02:11.1]} 16. Rfb1 {[%clk 0:02:57.5]} 16... b5 {[%clk 0:02:07.6]} 17.
axb5 {[%clk 0:02:58.4]} 17... axb5 {[%clk 0:02:08]} 18. b4 {[%clk 0:02:58.6]}
18... c4 {[%clk 0:01:51.2]} 19. Ra7 {[%clk 0:02:55.4]} 19... Qc8 {[%clk
0:01:31.6]} 20. Rba1 {[%clk 0:02:53.6]} 20... Rb7 {[%clk 0:01:25.6]} 21. R7a6
{[%clk 0:02:48.7]} 21... Qc7 {[%clk 0:01:22.2]} 22. R1a3 {[%clk 0:02:47.3]}
22... Rfb8 {[%clk 0:01:18.5]} 23. h3 {[%clk 0:02:40.4]} 23... g5 {[%clk
0:01:01.7]} 24. g4 {[%clk 0:02:30.5]} 24... Ng6 {[%clk 0:00:57.7]} 25. Nh1
{[%clk 0:02:00.9]} 25... Ne8 {[%clk 0:00:50.7]} 26. Ng3 {[%clk 0:01:54.8]} 26...
Be5 {[%clk 0:00:50.3]} 27. Kf2 {[%clk 0:01:40.4]} 27... Nf6 {[%clk 0:00:44.6]}
28. Bf1 {[%clk 0:01:38.5]} 28... Nf4 {[%clk 0:00:40.3]} 29. Bd4 {[%clk
0:01:27.6]} 29... Rb6 {[%clk 0:00:26.2]} 30. Rxb6 {[%clk 0:01:16.8]} 30... Rxb6
{[%clk 0:00:22.8]} 31. Qe3 {[%clk 0:00:55.5]} 31... Rb7 {[%clk 0:00:19]} 32. Ra5
{[%clk 0:00:45.3]} 32... Qd8 {[%clk 0:00:15.6]} 33. Nf5 {[%clk 0:00:35.3]} 33...
Qe8 {[%clk 0:00:08.6]} 34. Ra6 {[%clk 0:00:30]} 34... Bxf5 {[%clk 0:00:07.6]}
35. exf5 {[%clk 0:00:27.1]} 35... Kg7 {[%clk 0:00:07.9]} 36. Ra5 {[%clk
0:00:13.3]} 36... Re7 {[%clk 0:00:07.2]} 37. Bxe5 {[%clk 0:00:11.1]} 37... Rxe5
{[%clk 0:00:08.1]} 38. Qd2 {[%clk 0:00:07.4]} 38... N6xd5 {[%clk 0:00:08.4]} 39.
Nxb5 {[%clk 0:00:05.8]} 39... Ne3 {[%clk 0:00:06.3]} 40. Nc3 {[%clk 0:00:05.1]}
40... Nxf1 {[%clk 0:00:05.7]} 41. Kxf1 {[%clk 0:00:05.5]} 41... Nd3 {[%clk
0:00:06.1]} 42. Ne4 {[%clk 0:00:04.5]} 42... Rxe4 {[%clk 0:00:04.1]} 43. fxe4
{[%clk 0:00:04.1]} 43... Qxe4 {[%clk 0:00:05]} 44. f6+ {[%clk 0:00:03.7]} 44...
Kh7 {[%clk 0:00:04.8]} 45. Ra7 {[%clk 0:00:02.9]} 45... Qh1+ {[%clk 0:00:04]}
46. Ke2 {[%clk 0:00:02.7]} 46... Qg2+ {[%clk 0:00:03.2]} 0-1

[Event "Late-Titled-Tuesday-Blitz-February-27-2024"]
[Site "Chess.com"]
[Date "2024.02.27"]
[Round "1"]
[White "GodzillaChessYoutube"]
[Black "PapiPapita"]
[Result "0-1"]
[WhiteElo "2649"]
[BlackElo "2388"]
[TimeControl "180+1"]
[EndTime "14:07:55 PST"]
[Termination "PapiPapita won on time"]

1. d4 {[%clk 0:02:55.8]} 1... Nf6 {[%clk 0:02:59.7]} 2. Bf4 {[%clk 0:02:55.8]}
2... b6 {[%clk 0:02:57]} 3. e3 {[%clk 0:02:55.9]} 3... Bb7 {[%clk 0:02:57.4]} 4.
a4 {[%clk 0:02:56.1]} 4... a6 {[%clk 0:02:57.1]} 5. Nd2 {[%clk 0:02:55.1]} 5...
e6 {[%clk 0:02:54.8]} 6. c3 {[%clk 0:02:54.7]} 6... Be7 {[%clk 0:02:54.9]} 7. h3
{[%clk 0:02:54]} 7... O-O {[%clk 0:02:50.4]} 8. Ngf3 {[%clk 0:02:53.5]} 8... c5
{[%clk 0:02:51]} 9. Bd3 {[%clk 0:02:51]} 9... d6 {[%clk 0:02:50.5]} 10. Qe2
{[%clk 0:02:45.2]} 10... Re8 {[%clk 0:02:44.8]} 11. Bh2 {[%clk 0:02:44.5]} 11...
Nbd7 {[%clk 0:02:39.5]} 12. O-O {[%clk 0:02:41.6]} 12... Bf8 {[%clk 0:02:37.8]}
13. Rfd1 {[%clk 0:02:41]} 13... d5 {[%clk 0:02:28.1]} 14. Ne5 {[%clk 0:02:21.3]}
14... c4 {[%clk 0:02:18.9]} 15. Bc2 {[%clk 0:02:21.1]} 15... b5 {[%clk
0:02:19.4]} 16. e4 {[%clk 0:02:14]} 16... Qb6 {[%clk 0:01:59.2]} 17. a5 {[%clk
0:02:06]} 17... Qa7 {[%clk 0:01:51.8]} 18. Nxd7 {[%clk 0:02:02.1]} 18... Nxd7
{[%clk 0:01:50.5]} 19. e5 {[%clk 0:02:02.3]} 19... Be7 {[%clk 0:01:31.5]} 20. f4
{[%clk 0:02:01.9]} 20... b4 {[%clk 0:01:15.9]} 21. f5 {[%clk 0:01:47.1]} 21...
b3 {[%clk 0:01:05]} 22. Bb1 {[%clk 0:01:46.4]} 22... exf5 {[%clk 0:00:49.2]} 23.
Bxf5 {[%clk 0:01:47.3]} 23... Nf8 {[%clk 0:00:50.1]} 24. Rf1 {[%clk 0:01:30.3]}
24... Bc8 {[%clk 0:00:39.5]} 25. Qf3 {[%clk 0:01:17.4]} 25... Bg5 {[%clk
0:00:38.3]} 26. Rad1 {[%clk 0:01:05.5]} 26... Bxd2 {[%clk 0:00:31.2]} 27. Rxd2
{[%clk 0:01:06.4]} 27... Bxf5 {[%clk 0:00:27.8]} 28. Qxf5 {[%clk 0:01:07.3]}
28... Re7 {[%clk 0:00:21.2]} 29. Rdf2 {[%clk 0:01:02.4]} 29... Ne6 {[%clk
0:00:19.9]} 30. Qg4 {[%clk 0:01:01.5]} 30... Qc7 {[%clk 0:00:19.5]} 31. Rxf7
{[%clk 0:00:38.6]} 31... Rxf7 {[%clk 0:00:20.4]} 32. Qxe6 {[%clk 0:00:39.1]}
32... Qd7 {[%clk 0:00:20.4]} 33. Qxd7 {[%clk 0:00:16]} 33... Rxd7 {[%clk
0:00:21.3]} 34. Bf4 {[%clk 0:00:14.4]} 34... Rf8 {[%clk 0:00:20.1]} 35. g3
{[%clk 0:00:14.7]} 35... Rdf7 {[%clk 0:00:15.5]} 36. h4 {[%clk 0:00:15]} 36...
h6 {[%clk 0:00:15]} 37. Ra1 {[%clk 0:00:14.4]} 37... g5 {[%clk 0:00:14.5]} 38.
hxg5 {[%clk 0:00:15.3]} 38... hxg5 {[%clk 0:00:15.4]} 39. Bxg5 {[%clk
0:00:15.6]} 39... Rf2 {[%clk 0:00:16.3]} 40. e6 {[%clk 0:00:13.7]} 40... Re2
{[%clk 0:00:16.7]} 41. e7 {[%clk 0:00:05.5]} 41... Rf3 {[%clk 0:00:17.2]} 42.
Bf4 {[%clk 0:00:05.7]} 42... Kf7 {[%clk 0:00:16.9]} 43. Be5 {[%clk 0:00:04.3]}
43... Rxb2 {[%clk 0:00:16.5]} 44. Re1 {[%clk 0:00:03.5]} 44... Kxe7 {[%clk
0:00:16.5]} 45. Bf4+ {[%clk 0:00:02.9]} 45... Kd7 {[%clk 0:00:16]} 46. Kh1
{[%clk 0:00:02.6]} 46... Rxc3 {[%clk 0:00:14.7]} 0-1

[Event "Late-Titled-Tuesday-Blitz-February-27-2024"]
[Site "Chess.com"]
[Date "2024.02.27"]
[Round "1"]
[White "Hui_Li_Macau"]
[Black "Rashad_Zeynalli"]
[Result "0-1"]
[WhiteElo "2353"]
[BlackElo "2651"]
[TimeControl "180+1"]
[EndTime "14:07:59 PST"]
[Termination "Rashad_Zeynalli won by checkmate"]

1. e4 {[%clk 0:03:00.9]} 1... c5 {[%clk 0:03:00.2]} 2. Nf3 {[%clk 0:03:00.3]}
2... d6 {[%clk 0:03:00.8]} 3. d4 {[%clk 0:03:00.1]} 3... cxd4 {[%clk 0:03:01.7]}
4. Nxd4 {[%clk 0:03:01]} 4... Nf6 {[%clk 0:03:02.3]} 5. Nc3 {[%clk 0:03:01]}
5... a6 {[%clk 0:03:02.9]} 6. Be2 {[%clk 0:03:01.4]} 6... e5 {[%clk 0:03:02.5]}
7. Nb3 {[%clk 0:03:01.8]} 7... Be7 {[%clk 0:03:01.7]} 8. O-O {[%clk 0:03:02]}
8... O-O {[%clk 0:03:01.7]} 9. Be3 {[%clk 0:03:02.9]} 9... Be6 {[%clk
0:03:00.3]} 10. Qd2 {[%clk 0:03:02.7]} 10... Nbd7 {[%clk 0:02:45.8]} 11. a4
{[%clk 0:03:02.4]} 11... Rc8 {[%clk 0:02:42.6]} 12. a5 {[%clk 0:03:02]} 12...
Rxc3 {[%clk 0:02:38.8]} 13. Qxc3 {[%clk 0:03:02]} 13... Nxe4 {[%clk 0:02:39.1]}
14. Qb4 {[%clk 0:03:02.2]} 14... f5 {[%clk 0:02:09.8]} 15. Qxb7 {[%clk
0:03:00.4]} 15... Ndf6 {[%clk 0:02:06.2]} 16. Qxa6 {[%clk 0:02:34.8]} 16... f4
{[%clk 0:02:03.2]} 17. Bb6 {[%clk 0:02:34.1]} 17... Qe8 {[%clk 0:02:02.8]} 18.
f3 {[%clk 0:02:04.3]} 18... Ng5 {[%clk 0:01:52.9]} 19. h4 {[%clk 0:01:21.5]}
19... Nf7 {[%clk 0:01:45.5]} 20. Qb5 {[%clk 0:01:11.7]} 20... Bd7 {[%clk
0:01:43.9]} 21. Qd3 {[%clk 0:01:09.7]} 21... Nh5 {[%clk 0:01:40.9]} 22. a6
{[%clk 0:00:58.9]} 22... Ng3 {[%clk 0:01:40.2]} 23. Rfd1 {[%clk 0:00:57.1]}
23... Bd8 {[%clk 0:01:35.5]} 24. Bf2 {[%clk 0:00:54.6]} 24... Qe7 {[%clk
0:01:33.5]} 25. Bxg3 {[%clk 0:00:38.1]} 25... fxg3 {[%clk 0:01:33.2]} 26. Kf1
{[%clk 0:00:26.5]} 26... Qxh4 {[%clk 0:01:32.1]} 27. Ke1 {[%clk 0:00:26.6]}
27... Bg5 {[%clk 0:01:15.4]} 28. a7 {[%clk 0:00:23.1]} 28... Qh1+ {[%clk
0:01:11.6]} 29. Bf1 {[%clk 0:00:23.2]} 29... Qg1 {[%clk 0:01:12.5]} 30. Qe2
{[%clk 0:00:14.4]} 30... Bc6 {[%clk 0:01:04]} 31. Nd2 {[%clk 0:00:12.1]} 31...
Be3 {[%clk 0:00:56.2]} 32. Ne4 {[%clk 0:00:10.3]} 32... Ng5 {[%clk 0:00:43.8]}
33. a8=Q {[%clk 0:00:07.7]} 33... Bxa8 {[%clk 0:00:37.6]} 34. Ra3 {[%clk
0:00:05.3]} 34... Bc5 {[%clk 0:00:15.5]} 35. Nxc5 {[%clk 0:00:04]} 35... Qxc5
{[%clk 0:00:15.3]} 36. Rc3 {[%clk 0:00:03.5]} 36... Qa5 {[%clk 0:00:11.4]} 37.
Qc4+ {[%clk 0:00:03.3]} 37... d5 {[%clk 0:00:11.6]} 38. Qc5 {[%clk 0:00:01.9]}
38... Qa2 {[%clk 0:00:11]} 39. Qa3 {[%clk 0:00:02]} 39... Qxa3 {[%clk 0:00:10]}
40. Rxa3 {[%clk 0:00:02.4]} 40... e4 {[%clk 0:00:09.9]} 41. Rc3 {[%clk
0:00:02.2]} 41... exf3 {[%clk 0:00:09.6]} 42. gxf3 {[%clk 0:00:02.7]} 42...
Nxf3+ {[%clk 0:00:09.8]} 43. Ke2 {[%clk 0:00:02.6]} 43... d4 {[%clk 0:00:10.3]}
44. Ra3 {[%clk 0:00:02.3]} 44... Ng1+ {[%clk 0:00:10.1]} 45. Ke1 {[%clk
0:00:02.3]} 45... Nf3+ {[%clk 0:00:09.8]} 46. Ke2 {[%clk 0:00:02.5]} 46... Re8+
{[%clk 0:00:10.1]} 47. Kd3 {[%clk 0:00:02.5]} 47... Bd5 {[%clk 0:00:09.9]} 48.
Bg2 {[%clk 0:00:02.5]} 48... Re3# {[%clk 0:00:10.2]} 0-1

[Event "Late-Titled-Tuesday-Blitz-February-27-2024"]
[Site "Chess.com"]
[Date "2024.02.27"]
[Round "1"]
[White "Piotrek1979"]
[Black "ansko1999"]
[Result "1-0"]
[WhiteElo "2445"]
[BlackElo "2732"]
[TimeControl "180+1"]
[EndTime "14:08:02 PST"]
[Termination "Piotrek1979 won by checkmate"]

1. Nf3 {[%clk 0:02:57.5]} 1... b6 {[%clk 0:02:58.6]} 2. g3 {[%clk 0:02:55.7]}
2... Bb7 {[%clk 0:02:58.8]} 3. Bg2 {[%clk 0:02:56.6]} 3... Nf6 {[%clk
0:02:58.4]} 4. b3 {[%clk 0:02:57.1]} 4... g6 {[%clk 0:02:57.6]} 5. Bb2 {[%clk
0:02:57.5]} 5... Bg7 {[%clk 0:02:58]} 6. O-O {[%clk 0:02:57.7]} 6... O-O {[%clk
0:02:58.1]} 7. c4 {[%clk 0:02:57.9]} 7... c5 {[%clk 0:02:56.3]} 8. e3 {[%clk
0:02:57.9]} 8... d6 {[%clk 0:02:54.3]} 9. d3 {[%clk 0:02:57.7]} 9... Nbd7 {[%clk
0:02:48.9]} 10. Nbd2 {[%clk 0:02:58]} 10... Qc7 {[%clk 0:02:43.9]} 11. Qc2
{[%clk 0:02:58.3]} 11... Rfd8 {[%clk 0:02:42.4]} 12. a3 {[%clk 0:02:58.9]} 12...
Rac8 {[%clk 0:02:38]} 13. Rac1 {[%clk 0:02:59.5]} 13... Qb8 {[%clk 0:02:35.1]}
14. Qb1 {[%clk 0:02:59]} 14... Qa8 {[%clk 0:02:33.5]} 15. Rfe1 {[%clk
0:02:57.3]} 15... a6 {[%clk 0:02:27.9]} 16. Bc3 {[%clk 0:02:54.5]} 16... Bc6
{[%clk 0:02:24.6]} 17. Qb2 {[%clk 0:02:53.8]} 17... b5 {[%clk 0:02:22.8]} 18. b4
{[%clk 0:02:44.3]} 18... bxc4 {[%clk 0:02:19.2]} 19. dxc4 {[%clk 0:02:42.9]}
19... Rb8 {[%clk 0:02:11.8]} 20. Qa1 {[%clk 0:02:41.2]} 20... Nf8 {[%clk
0:01:45.4]} 21. Nh4 {[%clk 0:02:27.6]} 21... Bxg2 {[%clk 0:01:44.5]} 22. Nxg2
{[%clk 0:02:28.5]} 22... Ne6 {[%clk 0:01:42.2]} 23. h4 {[%clk 0:02:24.2]} 23...
h5 {[%clk 0:01:39.9]} 24. e4 {[%clk 0:02:10.4]} 24... cxb4 {[%clk 0:01:11.3]}
25. axb4 {[%clk 0:02:08.9]} 25... Ne8 {[%clk 0:01:09.1]} 26. Rb1 {[%clk
0:01:59.5]} 26... Qc6 {[%clk 0:01:06.5]} 27. Ne3 {[%clk 0:01:54]} 27... Bxc3
{[%clk 0:01:03.2]} 28. Qxc3 {[%clk 0:01:52.9]} 28... Nf6 {[%clk 0:01:03.7]} 29.
Nd5 {[%clk 0:01:51.8]} 29... Kf8 {[%clk 0:00:33.4]} 30. Nxf6 {[%clk 0:01:49.1]}
30... exf6 {[%clk 0:00:34.3]} 31. Qxf6 {[%clk 0:01:49.2]} 31... Kg8 {[%clk
0:00:28.5]} 32. Rec1 {[%clk 0:01:43.2]} 32... Re8 {[%clk 0:00:27.5]} 33. Rc3
{[%clk 0:01:23.7]} 33... Qd7 {[%clk 0:00:18.5]} 34. Rd3 {[%clk 0:01:14.5]} 34...
Qc7 {[%clk 0:00:14.6]} 35. Rd5 {[%clk 0:01:04]} 35... Re7 {[%clk 0:00:09.2]} 36.
Rb3 {[%clk 0:00:58.3]} 36... Rbe8 {[%clk 0:00:08.1]} 37. Rbd3 {[%clk 0:00:51.3]}
37... Rd7 {[%clk 0:00:06.9]} 38. e5 {[%clk 0:00:48.7]} 38... Ng7 {[%clk
0:00:03.7]} 39. Rxd6 {[%clk 0:00:33.5]} 39... Rxd6 {[%clk 0:00:03.5]} 40. Qxd6
{[%clk 0:00:34.3]} 40... Qb7 {[%clk 0:00:03.6]} 41. Nf3 {[%clk 0:00:15]} 41...
Nf5 {[%clk 0:00:03.3]} 42. Qc5 {[%clk 0:00:13.2]} 42... Rc8 {[%clk 0:00:03.1]}
43. Qd5 {[%clk 0:00:09.1]} 43... Qxb4 {[%clk 0:00:03.2]} 44. e6 {[%clk
0:00:09.3]} 44... Rf8 {[%clk 0:00:02.4]} 45. Ng5 {[%clk 0:00:09.1]} 45... f6
{[%clk 0:00:01.8]} 46. e7+ {[%clk 0:00:08.8]} 46... Rf7 {[%clk 0:00:01.3]} 47.
Qxf7+ {[%clk 0:00:07.7]} 47... Kh8 {[%clk 0:00:01.1]} 48. Qh7# {[%clk
0:00:08.6]} 1-0